Cogmind - Beta 13 @@@ ROGUE MODE // 2024.04.09 @ 21:28:24 Player: Bace Troncons Result: Destroyed by H-61 Shepherd with Heavy Assault Cannon Performance ------------- Evolutions (2) 1000 Regions Visited (3) 600 Robots Destroyed (31) 155 Value Destroyed (907) 907 Prototype IDs (1) 20 Alien Tech Used (0) 0 Bonus (0) 0 TOTAL SCORE: 2682 Bonus ------- None Cogmind --------- Core Integrity 0/550 Matter 154/300 Energy 100/100 System Corruption 2% Temperature Cool (0) Movement Core (750) Ox14 Location -8/Materials Parts ------- > --- POWER (2) -------- (None) > --- PROPULSION (2) --- (None) > --- UTILITY (4) ------ High-capacity Storage Unit Terrain Scanner > --- WEAPON (3) ------- Scythe > --- INVENTORY (20) --- Light Treads Aluminum Leg Aluminum Leg Thermal Generator Heat Sink Improved Heat Sink Large Storage Unit Large Storage Unit Small Battery (100) Weight Redist. System Visual Processing Unit Terrain Scanner Core Shielding Beam Rifle Heavy Particle Cannon Ion Cannon Plasma Cutter Peak State ------------ > --- POWER ------------ Improved Ion Engine > --- PROPULSION ------- Improved Aluminum Leg Carbon-fiber Leg > --- UTILITY ---------- High-capacity Storage Unit Improved Signal Interpreter Terrain Scanner Hardened Light Armor Plating > --- WEAPON ----------- Mini Grenade Launcher Plasma Cutter > --- INVENTORY -------- Light Treads Aluminum Leg Heat Sink Large Storage Unit Large Storage Unit Small Battery Large Battery Weight Redist. System Visual Processing Unit Terrain Scanner Core Shielding Heavy Particle Cannon Mini Grenade Launcher Plasma Cutter [Rating: 20] Favorites ----------- Power Light Nuclear Core Engine Improved Ion Engine Power Core Light Nuclear Core Propulsion Aluminum Leg Treads Light Treads Leg Aluminum Leg Wheel Wheel Utility High-capacity Storage Unit Device Seismic Detector Storage High-capacity Storage Unit Processor Improved Signal Interpreter Protection Hardened Light Armor Plating Weapon Assault Rifle Energy Gun Heavy EM Pulse Gun Energy Cannon Advanced Beam Cannon Ballistic Gun Assault Rifle Launcher Mini Grenade Launcher Special Weapon Plasma Cutter Slashing Weapon Scythe Special Melee Weapon Datajack Build | -11 -10 -9 -8 ------- Run | Yrd Mat Mat Mat Slots Evolved 4 | . . 2 2 Power 1 | . . 1 . Propulsion . | . . . . Utility 2 | . . 1 1 Weapon 1 | . . . 1 Parts Attached 59 | 6 20 26 7 Power 7 | 1 3 3 . Engine 5 | 1 2 2 . Core 2 | . 1 1 . Reactor . | . . . . Propulsion 17 | 2 7 7 1 Treads 4 | 1 2 1 . Leg 12 | . 5 6 1 Wheel 1 | 1 . . . Hover . | . . . . Flight . | . . . . Utility 16 | 1 5 7 3 Device 4 | . 1 2 1 Storage 10 | 1 4 4 1 Processor 1 | . . . 1 Hackware . | . . . . Protection 1 | . . 1 . Artifact . | . . . . Weapon 19 | 2 5 9 3 Energy Gun 4 | . 1 3 . Energy Cannon 3 | . 1 2 . Ballistic Gun 3 | 2 1 . . Ballistic Cannon . | . . . . Launcher 5 | . 1 2 2 Special Weapon 2 | . 1 1 . Impact Weapon . | . . . . Slashing Weapon 1 | . . . 1 Piercing Weapon . | . . . . Special Melee Weapon 1 | . . 1 . Unidentified Prototypes 1 | . 1 . . Parts Lost 18 | . 4 4 10 Power 3 | . 1 1 1 Propulsion 3 | . 1 . 2 Utility 5 | . 1 1 3 Weapon 7 | . 1 2 4 Highest Loss Streak 5 | . 4 2 5 To Critical Strikes . | . . . . Average Slot Usage (%) 76 | . 85 73 66 Engine 4 | . 3 6 4 Core 4 | . 7 3 . Treads 6 | . 12 2 . Leg 12 | . 13 11 14 Device 4 | . 3 4 6 Storage 18 | . 14 23 14 Protection 4 | . 3 4 7 Energy Gun 2 | . . 4 1 Energy Cannon 2 | . . 5 . Ballistic Gun 9 | . 23 . . Launcher 2 | . . 3 6 Special Weapon 2 | . . 2 5 Special Melee Weapon 1 | . . 2 . Naked Turns . | . . . . Heaviest Build 60 | 13 49 59 60 Greatest Support 40 | 20 40 29 28 Greatest Overweight (x) 15 | 1 4 14 15 Average Overweight (x) 1 | . . 2 2 Largest Inventory Capacity 20 | 8 20 20 20 Average Capacity 16 | 7 15 17 20 Most Carried 18 | 6 10 12 18 Average Carried 8 | 2 7 7 14 Final Capacity 20 | 8 5 20 20 Final Carried 17 | 6 5 12 17 Class Distribution -------------------- 93% | Mutant 6% | Scavenger-Mutant Dominant Class ---------------- Mutant | -10/Materials Mutant | -9/Materials Mutant | -8/Materials Resources | -11 -10 -9 -8 ----------- Run | Yrd Mat Mat Mat Matter Collected 1002 | 240 279 223 260 Remotely . | . . . . Salvage Created 1071 | . 372 433 266 Parts 65 | . 22 21 22 Haulers Intercepted 1 | . . 1 . Recyclers Shooed 7 | . . 6 1 Parts Field Recycled . | . . . . Retrieved Matter . | . . . . Parts Self-Destructed . | . . . . Prevented . | . . . . Kills | -11 -10 -9 -8 ------- Run | Yrd Mat Mat Mat Combat Hostiles Destroyed 18 | . 9 5 4 Guns 9 | . 9 . . Cannons 4 | . . 4 . AOE 4 | . . . 4 Classes Destroyed 10 | . 1 7 2 Worker 1 | . . 1 . Builder 3 | . . . 3 Hauler 1 | . . 1 . Recycler 2 | . . 1 1 Mechanic 1 | . . 1 . Operator 1 | . . 1 . Watcher 4 | . . 2 2 Grunt 15 | . 9 3 3 Sentry 2 | . . 2 . Hunter 1 | . . . 1 Best Kill Streak 3 | . 2 3 3 Combat Bots Only 3 | . 2 3 3 Max Kills in Single Turn 3 | . 1 2 3 Gunslinging . | . . . . Exploded 2 | . . . 2 Melee . | . . . . Uniques/NPCs Destroyed . | . . . . Combat | -11 -10 -9 -8 -------- Run | Yrd Mat Mat Mat Hostile Shots Fired 202 | . 85 52 65 Missed 59 | . 25 18 16 Damage Taken 2710 | . 751 485 1474 Core 924 | . 109 252 563 Absorbed by Shields . | . . . . Core Remaining (%) 64 | 100 56 37 . Volleys Fired 115 | . 48 48 19 Largest 2 | . 2 2 1 Hottest 124 | . 65 124 30 Shots Fired 153 | . 82 52 19 Gun 85 | . 78 7 . Cannon 41 | . . 41 . Launcher 23 | . . 4 19 Special 4 | . 4 . . Kinetic 77 | . 77 . . Thermal 53 | . 5 48 . Explosive 23 | . . 4 19 Electromagnetic . | . . . . Robot Hit Streak 10 | . 10 9 4 Robot Miss Streak 3 | . 3 2 1 Penetration Max . | . . . . Secondary Targets 2 | . 2 . . Max Gunslinging Chain 1 | . 1 . . Shots Hit Robots 101 | . 55 36 10 Core Hits 55 | . 22 13 20 Critical Kills 1 | . . 1 . Critical Parts Destroyed . | . . . . Critical Strikes 4 | . . 4 . Burn 3 | . . 3 . Meltdown 1 | . . 1 . Melee Attacks 3 | . . 3 . Impact . | . . . . Slashing . | . . . . Piercing . | . . . . Sneak Attacks 3 | . . 3 . Combat Hostiles . | . . . . Follow-up Attacks . | . . . . Damage Inflicted 2397 | . 601 713 1083 Guns 644 | . 600 44 . Cannons 613 | . . 613 . Explosions 1132 | . . 49 1083 Melee . | . . . . Ramming 8 | . 1 7 . Kinetic 600 | . 600 . . Thermal 657 | . . 657 . Explosive 1132 | . . 49 1083 Electromagnetic . | . . . . Impact . | . . . . Slashing . | . . . . Piercing . | . . . . Highest Corruption 6 | . 6 . 2 Average Corruption 4 | . 5 . 2 Corruption Purged . | . . . . Corruption Blocked . | . . . . Effects 27 | . 26 . 1 Message Errors 7 | . 7 . . Matter Fused 7 | . 7 . . Heat Flow Errors 4 | . 3 . 1 Energy Discharges 4 | . 4 . . Parts Rejected 1 | . 1 . . Data Loss (minor) 2 | . 2 . . Data Loss (major) 1 | . 1 . . Alerts 1 | . 1 . . Overload Shots . | . . . . Overflow Damage 19 | . . 1 18 Projectiles 1 | . . 1 . Explosions 18 | . . . 18 Melee . | . . . . Knockbacks . | . . . . Impact . | . . . . Kinetic . | . . . . Secondary . | . . . . Self-Inflicted Damage 131 | . . 39 92 Shots 6 | . . 1 5 Rammed . | . . . . Targets Rammed 2 | . 1 1 . Kicked 2 | . 1 1 . Crushed . | . . . . Highest Temperature 259 | . 259 219 100 Average Temperature 57 | . 55 59 44 Received Heat Transfer 849 | . 441 282 126 Siege Activations . | . . . . Robots Corrupted . | . . . . Combat Hostiles . | . . . . Parts Fried . | . . . . Impact Corruptions . | . . . . Robots Melted 2 | . . 2 . Combat Hostiles 1 | . . 1 . Parts Melted 4 | . . 4 . Heat Transferred 1443 | . . 1443 . Parts Sabotaged . | . . . . Parts Stolen . | . . . . Parts Stripped . | . . . . Power Chain Reactions . | . . . . Alert | -11 -10 -9 -8 ------- Run | Yrd Mat Mat Mat Peak Influence 266 | . 216 162 266 Initial 12 | . . 12 . Average 61 | . 63 44 113 Maximum Alert Level 1 | . 1 . 1 Low Security (%) 91 | 100 89 100 73 Level 1 8 | . 10 . 26 Level 2 . | . . . . Level 3 . | . . . . Level 4 . | . . . . Level 5 . | . . . . High Security . | . . . . Max Security . | . . . . Squads Dispatched 6 | . 2 . 4 Investigation 2 | . 1 . 1 Extermination . | . . . . Reinforcement 4 | . 1 . 3 Assault . | . . . . Garrison . | . . . . Intercept . | . . . . Searches Triggered . | . . . . Construction Impeded 1 | . . . 1 Haulers Reinforced . | . . . . Active Scanning Responses . | . . . . Cargo Convoy Interrupts . | . . . . Stealth | -11 -10 -9 -8 --------- Run | Yrd Mat Mat Mat Distress Signals 1 | . 1 . . Communications Jammed . | . . . . Distress Signals . | . . . . Times Spotted 38 | . 18 11 9 Peak Tracking Total 4 | . 3 4 4 Tactical Retreats 1 | . 1 . . Traps | -11 -10 -9 -8 ------- Run | Yrd Mat Mat Mat Traps Triggered 10 | . 7 3 . Indirectly . | . . . . Trap Hack Attempts . | . . . . Triggered . | . . . . Disarmed . | . . . . Reprogrammed 6 | . 6 . . Reused . | . . . . Traps Extracted . | . . . . Installed . | . . . . Triggered . | . . . . Machines | -11 -10 -9 -8 ---------- Run | Yrd Mat Mat Mat Machines Disabled 2 | . . 1 1 Max in Single Turn 1 | . . 1 1 Machines Repaired . | . . . . Machines Dismantled 2 | . . 2 . Machines Sabotaged . | . . . . Overloaded Fab Kills . | . . . . Hacking | -11 -10 -9 -8 --------- Run | Yrd Mat Mat Mat Machines Accessed 11 | . 5 4 2 Terminals 6 | . 3 2 1 Fabricators . | . . . . Repair Stations 2 | . 1 1 . Recycling Units 1 | . 1 . . Scanalyzers 2 | . . 1 1 Garrison Access . | . . . . Total Hacks 40 | . 13 18 9 Successful 27 | . 7 13 7 Failed 13 | . 6 5 2 Catastrophic 1 | . 1 . . Database Lockouts . | . . . . Manual 1 | . . 1 . Terminals 18 | . 9 6 3 Fabricators . | . . . . Repair Stations 4 | . 2 2 . Recycling Units 2 | . 2 . . Scanalyzers 16 | . . 10 6 Garrison Access . | . . . . Terminal Hacks 11 | . 5 4 2 Record 7 | . 2 4 1 Robot Analysis 1 | . 1 . . Reprogram Traps 1 | . 1 . . Hauler Manifests 1 | . . . 1 Registered Components 1 | . 1 . . Fabricator Hacks . | . . . . Repair Station Hacks 2 | . 1 1 . Refit 2 | . 1 1 . Recycling Unit Hacks 1 | . 1 . . Recycle Component 1 | . 1 . . Scanalyzer 13 | . . 8 5 Insert Component 7 | . . 4 3 Analyze 6 | . . 4 2 Garrison Access Hacks . | . . . . Unauthorized Hacks . | . . . . Terminals . | . . . . Fabricators . | . . . . Repair Stations . | . . . . Recycling Units . | . . . . Scanalyzers . | . . . . Garrison Access . | . . . . Data Cores Recovered 1 | . . 1 . Used . | . . . . Hacking Detections 10 | . 4 4 2 Full Trace Events 3 | . 2 . 1 Feedback Events . | . . . . Feedback Blocked . | . . . . Robot Schematics Acquired . | . . . . Robots Built . | . . . . Authchips . | . . . . Time . | . . . . Total Robot Build Rating . | . . . . Part Schematics Acquired 5 | . . 4 1 Parts Built . | . . . . Authchips . | . . . . Time . | . . . . Total Part Build Rating . | . . . . Parts Repaired . | . . . . Time . | . . . . Parts Recycled 1 | . 1 . . Recycled Matter . | . . . . Retrieved Matter . | . . . . Retrieved Components . | . . . . Parts Scanalyzed 6 | . . 4 2 Part Schematics Acquired 5 | . . 4 1 Parts Damaged 1 | . . 1 . Bothacking | -11 -10 -9 -8 ------------ Run | Yrd Mat Mat Mat Used RIF Installer . | . . . . Robots Hacked 2 | . . 2 . Non-combat 2 | . . 2 . Combat . | . . . . Robot Hacks Applied 3 | . . 3 . parse_system 1 | . . 1 . no_distress 2 | . . 2 . Relay Couplers Released . | . . . . Fabnet Peak Effective % . | . . . . Robots Rewired . | . . . . Allies Hacked . | . . . . Hacks Repelled . | . . . . Allies | -11 -10 -9 -8 -------- Run | Yrd Mat Mat Mat Total Allies . | . . . . Largest Group . | . . . . Highest-Rated Group . | . . . . Highest-Rated Ally . | . . . . Total Orders . | . . . . Ally Attacks . | . . . . Total Damage . | . . . . Kills . | . . . . Allies Corrupted . | . . . . Allies Melted . | . . . . Intel | -11 -10 -9 -8 ------- Run | Yrd Mat Mat Mat Robot Analysis Total 1 | . 1 . . Derelict Logs Recovered . | . . . . Drone Launches . | . . . . Drone Recoveries . | . . . . Exploration | -11 -10 -9 -8 ------------- Run | Yrd Mat Mat Mat Turns Passed 2787 | 116 1077 1123 471 Spaces Moved 1031 | 88 457 323 163 Core 134 | 26 11 87 10 Treads 322 | 48 205 69 . Legs 561 | . 241 167 153 Wheels 14 | 14 . . . Hover . | . . . . Flight . | . . . . Fastest Speed 50 | 50 100 100 190 Average Speed 220 | 116 197 265 254 Slowest Speed 800 | 160 400 750 800 Overloaded Moves . | . . . . Propulsion Burnouts . | . . . . Robots Hopped . | . . . . Cave-ins Triggered 1 | . . . 1 Exploration Rate (%) 28 | 4 69 28 13 Regions Visited 3 Branch Regions . Pre-discovered Areas . | . . . . Known Exits Taken . | . . . . Unknown Exits Taken 3 | 1 1 1 . Scrap Searched . | . . . . Spaces Dug 7 | . . . 7 Terrain Destroyed 167 | . . 35 132 Melee . | . . . . Projectile . | . . . . AOE 167 | . . 35 132 Terrain Rammed . | . . . . Walls Destroyed . | . . . . Machines Disabled . | . . . . Actions | -11 -10 -9 -8 --------- Run | Yrd Mat Mat Mat Total 1325 | 99 557 466 203 Wait 7 | . 2 2 3 Move 1028 | 87 456 322 163 Hop . | . . . . Pick Up 55 | 6 14 25 10 Fast Attach 6 | 6 . . . Attach 31 | . 10 16 5 Detach 7 | . 5 2 . Swap 22 | . 10 10 2 Drop 15 | . 11 4 . Fire 115 | . 48 48 19 Melee 3 | . . 3 . Ram . | . . . . Kick 2 | . 1 1 . Crush . | . . . . Escape Stasis . | . . . . Rewire . | . . . . Trap . | . . . . Miscellaneous 34 | . . 33 1 Route ------- -11/Scrapyard -10/Materials (discovered 2 exits: *Mat / [*Min]) -9/Materials (discovered 2 exits: *Mat / [*Sto]) -8/Materials History --------- Turn | Location | Event 30 | -11/Scrapyard | Discovered new exit (range 16) 117 | -11/Scrapyard | Entered Materials 328 | -10/Materials | Build established: Mutant 962 | -10/Materials | Lost 4 parts (1p1n1u1w) 990 | -10/Materials | Discovered new exit (range 7) 1177 | -10/Materials | Discovered new exit (range 15) 1194 | -10/Materials | Entered another Materials area 1194 | -9/Materials | Evolved 2 slots: Power x1, Utility x1 1655 | -9/Materials | Core integrity fell below 50% 1828 | -9/Materials | Discovered new exit (range 15) 2059 | -9/Materials | Discovered new exit (range 16) 2317 | -9/Materials | Entered another Materials area 2317 | -8/Materials | Evolved 2 slots: Utility x1, Weapon x1 2614 | -8/Materials | Crushed by falling debris 2714 | -8/Materials | Core integrity fell below 50% 2734 | -8/Materials | Core integrity fell below 20% 2769 | -8/Materials | Lost 5 parts (2n2u1w) 2788 | -8/Materials | Destroyed by H-61 Shepherd with Heavy Assault Cannon Last Messages --------------- 02712_ The unstable cave ceiling collapses. 02713_ Penetrated by Slug. 02717_ Knocked back. 02718_ System corrupted: Heat flow error (+131). 02720_ Acquired 8 matter. 02723_ Penetrated by Slug. 02728_ Acquired 14 matter. 02728_ Knocked back. 02733_ Penetrated by Slug. 02738_ Mni. Grenade Launcher destroyed. 02738_ Lrg. Battery destroyed. 02738_ Critical hit (Blast). 02738_ Knocked back. 02743_ Slug penetrates Wall. 02745_ The unstable cave ceiling collapses. 02761_ Acquired Beam Rifle. 02771_ Mni. Grenade Launcher destroyed. 02771_ Knocked back. 02772_ Acquired 5 matter. 02783_ U-05 Engineer builds a Wall. Map ----- +----------------------------------------------------+ | | | | | | | | | | | | | | | | | | | | | | | | | | | | | | | | | ???????????????#???????????##???? | | ??????????#?????#?????###### ???# | | ????????????? ?????#??#;;;;;##??? | | ?????????????? ???# ##! % #??? | | ???????? ???? ?#;#; #??# | | ????????????# "T" # ; #??? | | ????????????# """ ##?? | | ????????????# %u %#??# | | ????????????###### % #?#? | | ????????????????# @##+#??? | | ???????????????# # H ## #??? | | ???????????? ### #??? | | ??????????? ?# #?#? | | ??????????? ## ### #??? | | ??????????# #?# ?# #??# | | ??????????# ???## ## #??? | | ??????????#?????###**==!! ## #??? | | ??????????????????#**==!!### ##?? | | ????????????????######## ### #??? | | ????????????????????????##?# #??? | | ???????????????????????????# #?#? | | ???????????????????????????# #??? | | ???????????????????????#???# #??? | | ?????????????????????#?????# #??? | | ????????##########?######??# #??? | | ????????# ###!!!!##?# ##?? | | ????????# "" ! !#?# #??# | | ????????# """ #?# #??? | | ????????# S" ### #??? | | ??#?????# #??? | | ????#???# """ # # #####??? | | ????????# """ ##??#???? | | ????????# """ ? ??? | | ????##### # # # """""?? | +----------------------------------------------------+ Best States ------------- Heat Dissipation 38 Energy Generation 16 Energy Capacity 465 Matter Stores 300 Matter Capacity 300 Sight Range 16 Terrain Scan Range 14 Terrain Scan Density 10 Additional Mass Support 6 Armor Coverage 150 Evasion (%) 55 Recoil Reduction 2 Item Schematics ----------------- Terrain Scanner | -9/Materials | Scanalyzed Adv. Beam Cannon | -9/Materials | Scanalyzed Aluminum Leg | -9/Materials | Scanalyzed Lgt. Nuclear Core | -9/Materials | Scanalyzed Core Shielding | -8/Materials | Scanalyzed Robot Schematics ------------------ None Fabricated ------------ Nothing Alien Tech Used ----------------- None Achievements -------------- None Challenges ------------ None Game ------ Seed ControlPiercingReplicator Manual? 0 Play Time 01:09:34 Cumulative 12.8 hours Start 2024.04.07 @ 18:38:07 End 2024.04.09 @ 21:28:24 Sessions 4 Manual Loads 0 Difficulty Rogue Special Mode None Game No. 27 Rogue 27 Adventurer 0 Explorer 0 Win Type - Total 0 Types 0/0/0/0/0/0/0/0/0 Lore% 17 Gallery% 18 Achievement% 16 Wizard Run 0 Options --------- Layout 1 ASCII 0 Keyboard 1 Movement Numpad Keybinds 0 Fullscreen 1 Font 24/Smallcaps Map View 50x35 Zoom Use 0% Tactical HUD 1 Map Filters NONE Filters NONE Steam 1 RUN: a9b8dc20-d2ec-4d28-9c66-e49e39f77907